fUST/lending_fUST_20250917
["ID","MTS","AMOUNT","RATE_DAILY","PERIOD"]
[385884082,1758093052200,-480.0,0.00022739,3]
[385884083,1758093052209,-480.0,0.00022739,3]
[385884084,1758093052218,-1329.91,0.00022739,3]
[385884085,1758093052228,-480.0,0.00022739,3]
[385884086,1758093052239,-480.0,0.00022739,3]
[385884087,1758093052249,-480.0,0.00022739,3]
[385884088,1758093052259,-480.0,0.00022739,3]
[385884089,1758093052268,-480.0,0.00022739,3]
[385884090,1758093052276,-480.0,0.00022739,3]
[385884091,1758093052284,-480.0,0.00022739,3]
[385884092,1758093052293,-480.0,0.00022739,3]
[385884093,1758093052301,-5157.5,0.00022739,3]
[385884094,1758093052310,-480.0,0.00022739,3]
[385884095,1758093052319,-480.0,0.00022739,3]
[385884096,1758093052329,-10165.28,0.00022739,3]
[385884097,1758093052338,-480.0,0.00022739,3]
[385884098,1758093052347,-480.0,0.00022739,3]
[385884099,1758093052356,-480.0,0.00022739,3]
[385884100,1758093052366,-480.0,0.00022739,3]
[385884101,1758093052375,-480.0,0.00022739,3]
[385884102,1758093052385,-480.0,0.00022739,3]
[385884103,1758093052394,-480.0,0.00022739,3]
[385884104,1758093052404,-500.0,0.00022773,2]
[385884105,1758093052413,-977.0,0.0002282,2]
[385884106,1758093052423,-634.0,0.00022867,2]
[385884107,1758093052432,-2157.0,0.00022867,2]
[385884108,1758093052441,-25025.22229486,0.00022913,2]
[385884109,1758093052450,-150.406,0.00022924,2]
[385884110,1758093052459,-160.0,0.00023,3]
[385884111,1758093052468,-480.0,0.00023012,3]
[385884112,1758093052477,-834.7,0.00023012,3]
[385884113,1758093052486,-799.92,0.00023012,3]
[385884114,1758093052495,-480.0,0.00023012,3]
[385884115,1758093052504,-500.0,0.00023013,2]
[385884116,1758093052514,-480.0,0.00023013,3]
[385884117,1758093052523,-480.0,0.00023013,3]
[385884118,1758093052532,-480.0,0.00023013,3]
[385884119,1758093052540,-480.0,0.00023013,3]
[385884120,1758093052549,-480.0,0.00023013,3]
[385884121,1758093052559,-480.0,0.00023013,3]
[385884122,1758093052567,-480.0,0.00023013,3]
[385884123,1758093052576,-480.0,0.00023013,3]
[385884124,1758093052585,-480.0,0.00023013,3]
[385884125,1758093052594,-480.0,0.00023013,3]
[385884126,1758093052603,-480.0,0.00023013,3]
[385884127,1758093052612,-480.0,0.00023013,3]
[385884128,1758093052621,-480.0,0.00023013,3]
[385884129,1758093052630,-480.0,0.00023013,3]
[385884130,1758093052639,-553.93732327,0.00023013,3]
[385884131,1758093052649,-480.0,0.00023013,3]
[385884132,1758093052658,-480.0,0.00023013,3]
[385884133,1758093052666,-480.0,0.00023013,3]
[385884134,1758093052675,-480.0,0.00023013,3]
[385884135,1758093052685,-480.0,0.00023013,3]
[385884136,1758093052694,-480.0,0.00023013,3]
[385884137,1758093052703,-480.0,0.00023013,3]
[385884138,1758093052712,-480.0,0.00023013,3]
[385884139,1758093052721,-480.0,0.00023013,3]
[385884140,1758093052730,-480.0,0.00023013,3]
[385884141,1758093052739,-480.0,0.00023013,3]
[385884142,1758093052748,-500.0,0.00023013,3]
[385884143,1758093052757,-604.9,0.00023013,3]
[385884144,1758093052766,-480.0,0.00023013,3]
[385884145,1758093052775,-846.15,0.00023013,3]
[385884146,1758093052784,-480.0,0.00023013,3]
[385884147,1758093052793,-480.0,0.00023013,3]
[385884148,1758093052802,-480.0,0.00023013,3]
[385884149,1758093052811,-480.0,0.00023013,3]
[385884150,1758093052820,-480.0,0.00023013,3]
[385884151,1758093052829,-480.0,0.00023013,3]
[385884152,1758093052838,-480.0,0.00023013,3]
[385884153,1758093052847,-480.0,0.00023013,3]
[385884154,1758093052856,-480.0,0.00023013,3]
[385884155,1758093052864,-500.0,0.00023013,3]
[385884156,1758093052873,-480.0,0.00023013,3]
[385884157,1758093052882,-198.72563192,0.00023013,3]
[385884158,1758093052892,-480.0,0.00023013,3]
[385884159,1758093052901,-480.0,0.00023013,3]
[385884160,1758093052910,-480.0,0.00023013,3]
[385884161,1758093052919,-480.0,0.00023013,3]
[385884162,1758093052929,-480.0,0.00023013,3]
[385884163,1758093052938,-480.0,0.00023013,3]
[385884164,1758093052948,-480.0,0.00023013,3]
[385884165,1758093052957,-480.0,0.00023013,3]
[385884166,1758093052967,-480.0,0.00023013,3]
[385884167,1758093052976,-480.0,0.00023013,3]
[385884168,1758093052985,-480.0,0.00023013,3]
[385884169,1758093052994,-480.0,0.00023013,3]
[385884170,1758093053003,-480.0,0.00023013,3]
[385884171,1758093053013,-480.0,0.00023013,3]
[385884172,1758093053022,-480.0,0.00023013,3]
[385884173,1758093053031,-480.0,0.00023013,3]
[385884174,1758093053040,-480.0,0.00023013,3]
[385884175,1758093053053,-480.0,0.00023013,3]
[385884176,1758093053063,-480.0,0.00023013,3]
[385884177,1758093053072,-751.17,0.00023013,3]
[385884178,1758093053081,-480.0,0.00023013,3]
[385884179,1758093053092,-722.86,0.00023013,3]
[385884180,1758093053101,-689.87,0.00023013,3]
[385884181,1758093053111,-480.0,0.00023013,3]
[385884182,1758093053120,-480.0,0.00023013,3]
[385884183,1758093053130,-480.0,0.00023013,3]
[385884184,1758093053140,-480.0,0.00023013,3]
[385884185,1758093053149,-480.0,0.00023013,3]
[385884186,1758093053158,-1454.65,0.00023013,3]
[385884187,1758093053168,-1049.21,0.00023013,3]
[385884188,1758093053178,-1490.07,0.00023013,3]
[385884189,1758093053188,-576.04515315,0.00023013,3]
[385884190,1758093053197,-480.0,0.00023013,3]
[385884191,1758093053207,-480.0,0.00023013,3]
[385884192,1758093053216,-480.0,0.00023013,3]
[385884193,1758093053226,-437.69072291,0.00023013,3]
[385884194,1758093053235,-480.0,0.00023013,3]
[385884195,1758093053244,-480.0,0.00023013,3]
[385884196,1758093053253,-887.81,0.00023013,3]
[385884197,1758093053263,-480.0,0.00023013,3]
[385884198,1758093053272,-480.0,0.00023013,3]
[385884199,1758093053281,-1399.63,0.00023013,3]
[385884200,1758093053291,-480.0,0.00023013,3]
[385884201,1758093053299,-480.0,0.00023013,3]
[385884202,1758093053308,-480.0,0.00023013,3]
[385884203,1758093053318,-1279.48,0.00023013,3]
[385884204,1758093053327,-480.0,0.00023013,3]
[385884205,1758093053336,-480.0,0.00023013,3]
[385884206,1758093053346,-480.0,0.00023013,3]
[385884207,1758093053355,-480.0,0.00023013,3]
[385884208,1758093053364,-2401.66,0.00023013,3]
[385884209,1758093053374,-480.0,0.00023013,3]
[385884210,1758093053384,-480.0,0.00023013,3]
[385884211,1758093053393,-480.0,0.00023013,3]
[385884212,1758093053404,-480.0,0.00023013,3]
[385884213,1758093053413,-480.0,0.00023013,3]
[385884214,1758093053424,-480.0,0.00023013,3]
[385884215,1758093053433,-480.0,0.00023013,3]
[385884216,1758093053442,-1379.61,0.00023013,3]
[385884217,1758093053452,-480.0,0.00023013,3]
[385884218,1758093053462,-480.0,0.00023013,3]
[385884219,1758093053471,-532.35,0.00023013,3]
[385884220,1758093053481,-480.0,0.00023013,3]
[385884221,1758093053491,-501.68,0.00023013,3]
[385884222,1758093053500,-480.0,0.00023013,3]
[385884223,1758093053509,-480.0,0.00023013,3]
[385884224,1758093053519,-480.0,0.00023013,3]
[385884225,1758093053530,-480.0,0.00023013,3]
[385884226,1758093053540,-480.0,0.00023013,3]
[385884227,1758093053549,-480.0,0.00023013,3]
[385884228,1758093053558,-480.0,0.00023013,3]
[385884229,1758093053567,-1329.91,0.00023013,3]
[385884230,1758093053577,-480.0,0.00023013,3]
[385884231,1758093053586,-480.0,0.00023013,3]
[385884232,1758093053595,-480.0,0.00023013,3]
[385884233,1758093053605,-480.0,0.00023013,3]
[385884234,1758093053615,-480.0,0.00023013,3]
[385884235,1758093053625,-480.0,0.00023013,3]
[385884236,1758093053634,-480.0,0.00023013,3]
[385884237,1758093053643,-480.0,0.00023013,3]
[385884238,1758093053652,-5157.5,0.00023013,3]
[385884239,1758093053661,-480.0,0.00023013,3]
[385884240,1758093053670,-480.0,0.00023013,3]
[385884241,1758093053680,-10165.28,0.00023013,3]
[385884242,1758093053689,-480.0,0.00023013,3]
[385884243,1758093053698,-480.0,0.00023013,3]
[385884244,1758093053707,-480.0,0.00023013,3]
[385884245,1758093053716,-480.0,0.00023013,3]
[385884246,1758093053725,-480.0,0.00023013,3]
[385884247,1758093053734,-480.0,0.00023013,3]
[385884248,1758093053745,-480.0,0.00023013,3]
[385884249,1758093053754,-383.34516708,0.00023021,2]
[385884250,1758093053764,-504.02867387,0.00023021,2]
[385884251,1758093053773,-545.65803977,0.00023021,2]
[385884252,1758093053783,-503.90952613,0.00023021,2]
[385884253,1758093053792,-504.9035385,0.00023021,2]
[385884254,1758093053802,-1000.0,0.00023021,2]
[385884255,1758093053811,-1000.0,0.00023021,2]
[385884256,1758093053821,-397.33206441,0.00023232,2]
[385884257,1758093053831,-480.0,0.00023286,3]
[385884258,1758093053840,-834.7,0.00023286,3]
[385884259,1758093053850,-799.92,0.00023286,3]
[385884260,1758093053859,-480.0,0.00023286,3]
[385884261,1758093053868,-500.0,0.00023287,2]
[385884262,1758093053878,-480.0,0.00023287,3]
[385884263,1758093053887,-367.4,0.00023287,3]
[385884264,1758093053897,-480.0,0.00023287,3]
[385884265,1758093053906,-446.05,0.00023287,3]
[385884266,1758093053916,-480.0,0.00023287,3]
[385884267,1758093053927,-480.0,0.00023287,3]
[385884268,1758093053936,-480.0,0.00023287,3]
[385884269,1758093053945,-536.6,0.00023287,3]
[385884270,1758093053955,-480.0,0.00023287,3]
[385884271,1758093053965,-480.0,0.00023287,3]
[385884272,1758093053974,-480.0,0.00023287,3]
[385884273,1758093053984,-480.0,0.00023287,3]
[385884274,1758093053993,-552.05,0.00023287,3]
[385884275,1758093054002,-480.0,0.00023287,3]
[385884276,1758093054011,-480.0,0.00023287,3]
[385884277,1758093054020,-846.15,0.00023287,3]
[385884278,1758093054029,-480.0,0.00023287,3]
[385884279,1758093054038,-480.0,0.00023287,3]
[385884280,1758093054143,-480.0,0.00023287,3]
[385884281,1758093054152,-480.0,0.00023287,3]
[385884282,1758093054162,-480.0,0.00023287,3]
[385884283,1758093054171,-487.46489849,0.00023287,3]
[385884284,1758093054181,-636.6,0.00023287,3]
[385884285,1758093054191,-480.0,0.00023287,3]
[385884286,1758093054200,-480.0,0.00023287,3]
[385884287,1758093054209,-480.0,0.00023287,3]
[385884288,1758093054219,-480.0,0.00023287,3]
[385884289,1758093054228,-404.95,0.00023287,3]
[385884290,1758093054237,-565.2,0.00023287,3]
[385884291,1758093054247,-344.6,0.00023287,3]
[385884292,1758093054256,-480.0,0.00023287,3]
[385884293,1758093054266,-480.0,0.00023287,3]
[385884294,1758093054275,-480.0,0.00023287,3]
[385884295,1758093054285,-480.0,0.00023287,3]
[385884296,1758093054294,-480.0,0.00023287,3]
[385884297,1758093054303,-480.0,0.00023287,3]
[385884298,1758093054312,-480.0,0.00023287,3]
[385884299,1758093054321,-5231.41,0.00023287,2]
[385884300,1758093054331,-751.17,0.00023287,3]
[385884301,1758093054340,-480.0,0.00023287,3]
[385884302,1758093054350,-722.86,0.00023287,3]
[385884303,1758093054359,-689.87,0.00023287,3]
[385884304,1758093054369,-494.15,0.00023287,3]
[385884305,1758093054379,-480.0,0.00023287,3]
[385884306,1758093054388,-1454.65,0.00023287,3]
[385884307,1758093054398,-1049.21,0.00023287,3]
[385884308,1758093054407,-1490.07,0.00023287,3]
[385884309,1758093054416,-326.6,0.00023287,3]
[385884310,1758093054427,-480.0,0.00023287,3]
[385884311,1758093054436,-153.65,0.00023287,3]
[385884312,1758093054446,-480.0,0.00023287,3]
[385884313,1758093054455,-887.81,0.00023287,3]
[385884314,1758093054464,-480.0,0.00023287,3]
[385884315,1758093054474,-1399.63,0.00023287,3]
[385884316,1758093054483,-1279.48,0.00023287,3]
[385884317,1758093054492,-480.0,0.00023287,3]
[385884318,1758093054501,-480.0,0.00023287,3]
[385884319,1758093054510,-480.0,0.00023287,3]
[385884320,1758093054519,-2401.66,0.00023287,3]
[385884321,1758093054528,-480.0,0.00023287,3]
[385884322,1758093054538,-255.7,0.00023287,3]
[385884323,1758093054547,-480.0,0.00023287,3]
[385884324,1758093054556,-480.0,0.00023287,3]
[385884325,1758093054565,-480.0,0.00023287,3]
[385884326,1758093054575,-1379.61,0.00023287,3]
[385884327,1758093054584,-480.0,0.00023287,3]
[385884328,1758093054593,-480.0,0.00023287,3]
[385884329,1758093054601,-480.0,0.00023287,3]
[385884330,1758093054610,-501.68,0.00023287,3]
[385884331,1758093054619,-480.0,0.00023287,3]
[385884332,1758093054629,-480.0,0.00023287,3]
[385884333,1758093054638,-480.0,0.00023287,3]
[385884334,1758093054647,-480.0,0.00023287,3]
[385884335,1758093054656,-480.0,0.00023287,3]
[385884336,1758093054666,-1329.91,0.00023287,3]
[385884337,1758093054675,-480.0,0.00023287,3]
[385884338,1758093054685,-480.0,0.00023287,3]
[385884339,1758093054694,-477.5,0.00023287,3]
[385884340,1758093054703,-461.2,0.00023287,3]
[385884341,1758093054712,-480.0,0.00023287,3]
[385884342,1758093054721,-480.0,0.00023287,3]
[385884343,1758093054731,-280.3,0.00023287,3]
[385884344,1758093054740,-195.35,0.00023287,3]
[385884345,1758093054749,-5157.5,0.00023287,3]
[385884346,1758093054759,-480.0,0.00023287,3]
[385884347,1758093054768,-480.0,0.00023287,3]
[385884348,1758093054777,-10165.28,0.00023287,3]
[385884349,1758093054786,-480.0,0.00023287,3]
[385884350,1758093054795,-480.0,0.00023287,3]
[385884351,1758093054804,-480.0,0.00023287,3]
[385884352,1758093054814,-480.0,0.00023287,3]
[385884353,1758093054823,-480.0,0.00023287,3]
[385884354,1758093054833,-614.88941345,0.00023287,3]
[385884355,1758093054842,-1000.0,0.00023321,2]
[385884356,1758093054851,-366.86362021,0.00023369,2]
[385884357,1758093054861,-16845.08,0.00023551,3]
[385884358,1758093054870,-8981.58,0.00023551,3]
[385884359,1758093054879,-4490.8,0.00023551,3]
[385884360,1758093054888,-2245.4,0.00023551,3]
[385884361,1758093054897,-1122.7,0.00023551,3]
[385884362,1758093054906,-561.34,0.00023551,3]
[385884363,1758093054915,-328.44,0.00023551,3]
[385884364,1758093054925,-480.0,0.0002356,3]
[385884365,1758093054934,-834.7,0.0002356,3]
[385884366,1758093054943,-799.92,0.0002356,3]
[385884367,1758093054952,-480.0,0.0002356,3]
[385884368,1758093054961,-500.0,0.00023561,2]
[385884369,1758093054971,-480.0,0.00023561,3]
[385884370,1758093054980,-150.35,0.00023561,3]
[385884371,1758093054989,-480.0,0.00023561,3]
[385884372,1758093054998,-480.0,0.00023561,3]
[385884373,1758093055007,-480.0,0.00023561,3]
[385884374,1758093055016,-480.0,0.00023561,3]
[385884375,1758093055026,-200.0,0.00023561,2]
[385884376,1758093055035,-200.0,0.00023561,3]
[385884377,1758093055046,-200.0,0.00023561,3]
[385884378,1758093055056,-200.0,0.00023561,3]
[385884379,1758093055065,-200.0,0.00023561,3]
[385884380,1758093055074,-256.18437291,0.00023561,3]
[385884381,1758093055083,-566.3,0.00023561,3]
[385884382,1758093055096,-480.0,0.00023561,3]
[385884383,1758093055105,-629.25,0.00023561,3]
[385884384,1758093055114,-275.9,0.00023561,3]
[385884385,1758093055125,-480.0,0.00023561,3]
[385884386,1758093055134,-846.15,0.00023561,3]
[385884387,1758093055143,-480.0,0.00023561,3]
[385884388,1758093055152,-480.0,0.00023561,3]
[385884389,1758093055162,-480.0,0.00023561,3]
[385884390,1758093055171,-480.0,0.00023561,3]
[385884391,1758093055180,-438.9,0.00023561,3]
[385884392,1758093055190,-497.95,0.00023561,3]
[385884393,1758093055199,-480.0,0.00023561,3]
[385884394,1758093055208,-198.55,0.00023561,3]
[385884395,1758093055217,-480.0,0.00023561,3]
[385884396,1758093055226,-480.0,0.00023561,3]
[385884397,1758093055235,-480.0,0.00023561,3]
[385884398,1758093055244,-480.0,0.00023561,3]
[385884399,1758093055257,-480.0,0.00023561,3]
[385884400,1758093055266,-480.0,0.00023561,3]
[385884401,1758093055275,-480.0,0.00023561,3]
[385884402,1758093055284,-480.0,0.00023561,3]
[385884403,1758093055293,-751.17,0.00023561,3]
[385884404,1758093055302,-480.0,0.00023561,3]
[385884405,1758093055312,-722.86,0.00023561,3]
[385884406,1758093055321,-689.87,0.00023561,3]
[385884407,1758093055330,-1454.65,0.00023561,3]
[385884408,1758093055340,-1049.21,0.00023561,3]
[385884409,1758093055349,-1490.07,0.00023561,3]
[385884410,1758093055358,-480.0,0.00023561,3]
[385884411,1758093055367,-321.5,0.00023561,3]
[385884412,1758093055376,-887.81,0.00023561,3]
[385884413,1758093055386,-480.0,0.00023561,3]
[385884414,1758093055395,-1399.63,0.00023561,3]
[385884415,1758093055406,-1279.48,0.00023561,3]
[385884416,1758093055426,-480.0,0.00023561,3]
[385884417,1758093055438,-480.0,0.00023561,3]
[385884418,1758093055456,-2401.66,0.00023561,3]
[385884419,1758093055465,-169.95,0.00023561,3]
[385884420,1758093055474,-480.0,0.00023561,3]
[385884421,1758093055484,-540.6,0.00023561,3]
[385884422,1758093055493,-359.05,0.00023561,3]
[385884423,1758093055503,-480.0,0.00023561,3]
[385884424,1758093055512,-1379.61,0.00023561,3]
[385884425,1758093055521,-480.0,0.00023561,3]
[385884426,1758093055530,-480.0,0.00023561,3]
[385884427,1758093055539,-501.68,0.00023561,3]
[385884428,1758093055549,-480.0,0.00023561,3]
[385884429,1758093055558,-480.0,0.00023561,3]
[385884430,1758093055568,-480.0,0.00023561,3]
[385884431,1758093055577,-480.0,0.00023561,3]
[385884432,1758093055587,-1329.91,0.00023561,3]
[385884433,1758093055596,-480.0,0.00023561,3]
[385884434,1758093055605,-480.0,0.00023561,3]
[385884435,1758093055615,-480.0,0.00023561,3]
[385884436,1758093055625,-480.0,0.00023561,3]
[385884437,1758093055634,-480.0,0.00023561,3]
[385884438,1758093055644,-5157.5,0.00023561,3]
[385884439,1758093055653,-480.0,0.00023561,3]
[385884440,1758093055662,-10165.28,0.00023561,3]
[385884441,1758093055672,-480.0,0.00023561,3]
[385884442,1758093055684,-480.0,0.00023561,3]
[385884443,1758093055693,-480.0,0.00023561,3]
[385884444,1758093055703,-480.0,0.00023561,3]
[385884445,1758093055712,-480.0,0.00023561,3]
[385884446,1758093055721,-1500.0,0.00023568,2]
[385884447,1758093055731,-1500.0,0.00023568,2]
[385884448,1758093055740,-150.18126717,0.00023573,2]
[385884449,1758093055749,-500.0,0.00023573,2]
[385884450,1758093055758,-500.0,0.00023573,2]
[385884451,1758093055767,-160.0,0.00023633,2]
[385884452,1758093055778,-370.216327,0.00023647,2]
[385884453,1758093055787,-397.33206441,0.00023803,2]
[385884454,1758093055796,-480.0,0.00023834,3]
[385884455,1758093055805,-834.7,0.00023834,3]
[385884456,1758093055815,-799.92,0.00023834,3]
[385884457,1758093055824,-480.0,0.00023834,3]
[385884458,1758093055833,-500.0,0.00023835,2]
[385884459,1758093055842,-480.0,0.00023835,3]
[385884460,1758093055851,-480.0,0.00023835,3]
[385884461,1758093055860,-480.0,0.00023835,3]
[385884462,1758093055869,-623.45,0.00023835,3]
[385884463,1758093055878,-480.0,0.00023835,3]
[385884464,1758093055887,-480.0,0.00023835,3]
[385884465,1758093055896,-480.0,0.00023835,3]
[385884466,1758093055906,-846.15,0.00023835,3]
[385884467,1758093055915,-480.0,0.00023835,3]
[385884468,1758093055925,-480.0,0.00023835,3]
[385884469,1758093055935,-480.0,0.00023835,3]
[385884470,1758093055944,-480.0,0.00023835,3]
[385884471,1758093055954,-480.0,0.00023835,3]
[385884472,1758093055963,-480.0,0.00023835,3]
[385884473,1758093055972,-495.3,0.00023835,3]
[385884474,1758093055982,-480.0,0.00023835,3]
[385884475,1758093055991,-428.1,0.00023835,3]
[385884476,1758093056000,-480.0,0.00023835,3]
[385884477,1758093056010,-480.0,0.00023835,3]
[385884478,1758093056019,-480.0,0.00023835,3]
[385884479,1758093056028,-480.0,0.00023835,3]
[385884480,1758093056038,-751.17,0.00023835,3]
[385884481,1758093056049,-480.0,0.00023835,3]
[385884482,1758093056059,-689.87,0.00023835,3]
[385884483,1758093056068,-722.86,0.00023835,3]
[385884484,1758093056077,-1454.65,0.00023835,3]
[385884485,1758093056087,-1049.21,0.00023835,3]
[385884486,1758093056095,-480.0,0.00023835,3]
[385884487,1758093056104,-887.81,0.00023835,3]
[385884488,1758093056114,-480.0,0.00023835,3]
[385884489,1758093056125,-1399.63,0.00023835,3]
[385884490,1758093056135,-1279.48,0.00023835,3]
[385884491,1758093056144,-480.0,0.00023835,3]
[385884492,1758093056153,-480.0,0.00023835,3]
[385884493,1758093056162,-2401.66,0.00023835,3]
[385884494,1758093056171,-419.7,0.00023835,3]
[385884495,1758093056181,-480.0,0.00023835,3]
[385884496,1758093056191,-1379.61,0.00023835,3]
[385884497,1758093056200,-480.0,0.00023835,3]
[385884498,1758093056209,-480.0,0.00023835,3]
[385884499,1758093056218,-501.68,0.00023835,3]
[385884500,1758093056227,-480.0,0.00023835,3]
[385884501,1758093056236,-480.0,0.00023835,3]
[385884502,1758093056245,-363.3,0.00023835,3]
[385884503,1758093056254,-480.0,0.00023835,3]
[385884504,1758093056263,-1329.91,0.00023835,3]
[385884505,1758093056272,-480.0,0.00023835,3]
[385884506,1758093056281,-480.0,0.00023835,3]
[385884507,1758093056290,-480.0,0.00023835,3]
[385884508,1758093056300,-480.0,0.00023835,3]
[385884509,1758093056309,-480.0,0.00023835,3]
[385884510,1758093056318,-5002.39547504,0.00023835,3]
[385884511,1758093056395,-155.10452496,0.00023835,3]
[385884512,1758093056405,-480.0,0.00023835,3]
[385884513,1758093056414,-10165.28,0.00023835,3]
[385884514,1758093056425,-480.0,0.00023835,3]
[385884515,1758093056435,-480.0,0.00023835,3]
[385884516,1758093056444,-480.0,0.00023835,3]
[385884517,1758093056454,-480.0,0.00023835,3]
[385884518,1758093056463,-480.0,0.00023835,3]
[385884519,1758093056472,-480.0,0.00024108,3]
[385884520,1758093056481,-834.7,0.00024108,3]
[385884521,1758093056490,-799.92,0.00024108,3]
[385884522,1758093056500,-480.0,0.00024108,3]
[385884523,1758093056509,-500.0,0.00024109,2]
[385884524,1758093056519,-531.6,0.00024109,3]
[385884525,1758093056528,-480.0,0.00024109,3]
[385884526,1758093056537,-480.0,0.00024109,3]
[385884527,1758093056546,-523.65,0.00024109,3]
[385884528,1758093056555,-343.5,0.00024109,3]
[385884529,1758093056564,-150.0,0.00024109,2]
[385884530,1758093056664,-480.0,0.00024109,3]
[385884531,1758093056675,-846.15,0.00024109,3]
[385884532,1758093056685,-480.0,0.00024109,3]
[385884533,1758093056694,-627.15,0.00024109,3]
[385884534,1758093056703,-480.0,0.00024109,3]
[385884535,1758093056713,-480.0,0.00024109,3]
[385884536,1758093056722,-480.0,0.00024109,3]
[385884537,1758093056732,-480.0,0.00024109,3]
[385884538,1758093056741,-480.0,0.00024109,3]
[385884539,1758093056751,-468.65,0.00024109,3]
[385884540,1758093056760,-480.0,0.00024109,3]
[385884541,1758093056770,-480.0,0.00024109,3]
[385884542,1758093056779,-480.0,0.00024109,3]
[385884543,1758093056789,-751.17,0.00024109,3]
[385884544,1758093056798,-480.0,0.00024109,3]
[385884545,1758093056808,-689.87,0.00024109,3]
[385884546,1758093056822,-722.86,0.00024109,3]
[385884547,1758093056832,-1454.65,0.00024109,3]
[385884548,1758093056841,-1049.21,0.00024109,3]
[385884549,1758093056850,-480.0,0.00024109,3]
[385884550,1758093056859,-887.81,0.00024109,3]
[385884551,1758093056868,-480.0,0.00024109,3]
[385884552,1758093056877,-1399.63,0.00024109,3]
[385884553,1758093056887,-1279.48,0.00024109,3]
[385884554,1758093056896,-480.0,0.00024109,3]
[385884555,1758093056905,-480.0,0.00024109,3]
[385884556,1758093056914,-2401.66,0.00024109,3]
[385884557,1758093056924,-480.0,0.00024109,3]
[385884558,1758093056933,-1379.61,0.00024109,3]
[385884559,1758093056942,-480.0,0.00024109,3]
[385884560,1758093056952,-480.0,0.00024109,3]
[385884561,1758093056961,-501.68,0.00024109,3]
[385884562,1758093056969,-480.0,0.00024109,3]
[385884563,1758093056978,-480.0,0.00024109,3]
[385884564,1758093056987,-480.0,0.00024109,3]
[385884565,1758093056997,-1329.91,0.00024109,3]
[385884566,1758093057006,-480.0,0.00024109,3]
[385884567,1758093057016,-563.6,0.00024109,3]
[385884568,1758093057025,-391.15,0.00024109,3]
[385884569,1758093057034,-480.0,0.00024109,3]
[385884570,1758093057044,-480.0,0.00024109,3]
[385884571,1758093057056,-5157.5,0.00024109,3]
[385884572,1758093057065,-480.0,0.00024109,3]
[385884573,1758093057074,-10165.28,0.00024109,3]
[385884574,1758093057083,-480.0,0.00024109,3]
[385884575,1758093057093,-480.0,0.00024109,3]
[385884576,1758093057102,-480.0,0.00024109,3]
[385884577,1758093057111,-480.0,0.00024109,3]
[385884578,1758093057121,-480.0,0.00024109,3]
[385884579,1758093057130,-2000.0,0.00024116,2]
[385884580,1758093057140,-2000.0,0.00024116,2]
[385884581,1758093057150,-1010.16155834,0.00024121,2]